Cogmind - Beta 14 @@@ ROGUE MODE // 2024.10.18 @ 03:57:24 Player: Spoodle Result: Destroyed by S-27 Virus with Autogun Performance ------------- Evolutions (5) 2500 Regions Visited (19) 3800 Robots Destroyed (288) 1440 Value Destroyed (9422) 9422 Prototype IDs (32) 640 Alien Tech Used (0) 0 Bonus (1707) 1707 TOTAL SCORE: 19509 Bonus ------- High Alert Combat Kills 372 Follower Combat Kills 731 Network Hubs Disabled 400 Met Data Miner 300 A7 Reached Mainframe 300 Friendly Fire -396 Cogmind --------- Core Integrity 0/1000 Matter 300/300 Energy 99/100 System Corruption 5% Temperature Cool (0) Movement Core (50) Location -5/Factory Parts ------- > --- POWER (1) -------- (None) > --- PROPULSION (2) --- (None) > --- UTILITY (12) ----- Improved Hacking Suite Dynamic Insulation System > --- WEAPON (2) ------- (None) > --- INVENTORY (5) ---- Light Deuterium Engine Compact Wheel Arc Projector Heavy Phase Cannon Improved Remote Datajack Peak State ------------ > --- POWER ------------ Quantum Reactor > --- PROPULSION ------- Armored Huge Wheel > --- UTILITY ---------- Advanced Heat Sink Improved Cooling System Huge Storage Unit Structural Scanner Machine Analyzer Advanced Signal Interpreter Transmission Jammer Improved Medium Armor Plating Centrium Medium Armor Plating Light Regenerative Plating EM Disruption Field Improved Hacking Suite > --- WEAPON ----------- Phase Cannon Phase Cannon > --- INVENTORY -------- Neutrino Core Quantum Reactor Armored Huge Wheel Armored Huge Wheel Advanced Heat Sink Advanced Heat Sink Huge Storage Unit Compact Battery Compact Battery Improved Sensor Array Improved Terrain Scanner Transport Network Coupler Improved Medium Armor Plating Centrium Medium Armor Plating Reactive Plating Improved Hacking Suite Drone Bay Improved EM Pulse Cannon Proton Cannon Heavy Plasma Cannon Mini Grenade Launcher Improved Remote Datajack [Rating: 89] Favorites ----------- Power Reinforced Ion Engine Engine Reinforced Ion Engine Power Core Fission Core Reactor Quantum Reactor Propulsion Armored Wheel Treads Light Treads Leg Aluminum Leg Wheel Armored Wheel Hover Unit Backup Propulsion III Utility Huge Storage Unit Device Structural Scanner Storage Huge Storage Unit Processor Improved Signal Interpreter Hackware Hacking Suite Protection Light Regenerative Plating Weapon Advanced Beam Rifle Energy Gun Advanced Beam Rifle Energy Cannon Improved EM Pulse Cannon Ballistic Gun Precision Assault Rifle Launcher Mini Grenade Launcher Special Weapon Mining Laser Slashing Weapon Scythe Build | -11 -10 -10 -9 -9 -8 -8 -7 -7 -7 -7 -6 -6 -6 -6 -6 -6 -5 -5 -5 ------- Run | Yrd Mat Min Mat Min Mat Sto Fac Low Low Dat Pro Fac Ext Cet Arc Hub Fac Was Fac Slots Evolved 10 | . . . 2 . 2 . 2 . . . . 2 . . . . 2 . . Power . | . . . . . . . . . . . . . . . . . . . . Propulsion . | . . . . . . . . . . . . . . . . . . . . Utility 10 | . . . 2 . 2 . 2 . . . . 2 . . . . 2 . . Weapon . | . . . . . . . . . . . . . . . . . . . . Parts Attached 449 | 7 27 12 59 14 42 52 46 8 11 . 19 36 26 4 13 18 19 7 29 Power 21 | 1 3 1 2 . 1 1 . . 1 . 2 2 1 1 . 2 . 1 2 Engine 14 | 1 3 1 2 . 1 1 . . 1 . 2 1 . . . . . . 1 Core 4 | . . . . . . . . . . . . 1 1 1 . . . . 1 Reactor 3 | . . . . . . . . . . . . . . . . 2 . 1 . Propulsion 41 | 2 11 6 2 3 2 6 4 . . . . . . . . . 1 . 4 Treads 7 | . 4 3 . . . . . . . . . . . . . . . . . Leg 5 | 2 2 . . . . . . . . . . . . . . . . . 1 Wheel 28 | . 5 3 2 3 2 5 4 . . . . . . . . . 1 . 3 Hover 1 | . . . . . . 1 . . . . . . . . . . . . . Flight . | . . . . . . . . . . . . . . . . . . . . Utility 213 | 2 6 3 19 9 13 10 26 2 6 . 11 23 16 1 12 12 17 4 21 Device 160 | 1 5 3 11 8 8 6 19 2 4 . 9 17 13 . 7 10 13 4 20 Storage 6 | 1 1 . 1 . 1 1 . . . . . 1 . . . . . . . Processor 4 | . . . . . . . 2 . . . 1 1 . . . . . . . Hackware 6 | . . . . . 1 . . . . . . 3 . . . 1 . . 1 Protection 37 | . . . 7 1 3 3 5 . 2 . 1 1 3 1 5 1 4 . . Artifact . | . . . . . . . . . . . . . . . . . . . . Weapon 174 | 2 7 2 36 2 26 35 16 6 4 . 6 11 9 2 1 4 1 2 2 Energy Gun 64 | 1 6 1 21 1 9 15 6 1 1 . . . . 1 . . . . 1 Energy Cannon 38 | . . . 7 . . . . 2 2 . 3 6 8 1 1 4 1 2 1 Ballistic Gun 31 | 1 . . . . 14 13 3 . . . . . . . . . . . . Ballistic Cannon . | . . . . . . . . . . . . . . . . . . . . Launcher 22 | . . 1 5 . . 6 3 1 1 . 3 1 1 . . . . . . Special Weapon 7 | . 1 . 3 1 2 . . . . . . . . . . . . . . Impact Weapon . | . . . . . . . . . . . . . . . . . . . . Slashing Weapon 12 | . . . . . 1 1 4 2 . . . 4 . . . . . . . Piercing Weapon . | . . . . . . . . . . . . . . . . . . . . Special Melee Weapon . | . . . . . . . . . . . . . . . . . . . . Unidentified Prototypes 11 | . . . 3 . 2 2 1 . . . . . . 2 . 1 . . . Corrupted Parts 5 | . . . . . . . . . . . 1 . . 1 . 3 . . . System Corruption 34 | . . . . . . . . . . . 2 . . 12 . 20 . . . Parts Lost 56 | . 1 . 1 1 4 3 7 . . . . 3 3 . 2 1 1 10 19 Power 1 | . . . . . . . . . . . . . . . . . . 1 . Propulsion 11 | . . . 1 . 1 2 2 . . . . . . . . . 1 . 4 Utility 35 | . . . . 1 2 1 4 . . . . 2 2 . 1 1 . 7 14 Weapon 9 | . 1 . . . 1 . 1 . . . . 1 1 . 1 . . 2 1 Highest Loss Streak 11 | . 1 . 1 1 1 2 4 . . . . 2 1 . 2 1 1 8 11 To Critical Strikes 1 | . . . . . . . . . . . . . . . 1 . . . . Average Slot Usage (%) 93 | . 100 100 99 99 99 98 95 92 92 92 92 91 85 85 89 93 92 66 62 Engine 7 | . 14 14 11 11 9 8 7 7 7 7 7 3 . . . . . . 3 Wheel 13 | . 17 26 21 22 17 17 11 7 7 7 7 6 6 6 6 6 5 3 4 Device 17 | . 14 14 11 11 18 19 19 23 21 15 15 17 20 20 21 19 23 23 30 Storage 8 | . 14 14 11 11 9 9 7 7 7 7 7 6 6 6 6 6 5 2 . Processor 6 | . . . . . . . 7 15 15 15 15 13 13 13 13 13 11 8 . Hackware 3 | . . . . . 8 9 6 . . . . 7 3 . . 4 5 4 2 Protection 16 | . . . 21 21 18 15 16 15 16 23 22 20 15 20 21 22 21 9 8 Energy Gun 9 | . 24 28 20 21 2 11 9 6 5 . . . . 1 . . . . 4 Energy Cannon 3 | . . . . . . . . . 3 15 14 8 12 11 13 13 11 6 3 Ballistic Gun 2 | . 2 . . . 14 6 3 1 . . . . . . . . . . . Slashing Weapon 1 | . . . . . . . 1 5 5 . . 3 . . . . . . . Peak Build Rating 89 | 7 13 16 28 28 36 43 53 53 52 51 52 64 69 79 77 77 89 89 68 Average Rating 43 | 5 10 14 25 26 34 40 47 51 51 51 50 60 66 74 74 74 84 57 45 On Entrance 43 | . 7 13 16 28 26 35 40 53 51 51 51 52 63 69 75 74 77 87 2 Naked Turns 47 | . . . . . . . . . . . . . . . . . . 9 38 Heaviest Build 148 | 12 92 92 109 107 112 120 118 117 127 126 127 134 139 140 148 145 148 139 47 Greatest Support 40 | 20 40 40 24 28 28 28 32 28 28 28 28 28 28 28 28 28 28 28 28 Greatest Overweight (x) 9 | . 7 3 4 4 3 9 4 4 4 4 4 4 4 4 5 5 5 4 2 Average Overweight (x) 3 | . 2 2 3 3 3 3 3 3 3 4 4 4 4 4 4 4 4 1 . Largest Inventory Capacity 25 | 8 25 25 25 25 25 25 25 25 25 25 25 25 25 25 25 25 25 25 5 Average Capacity 23 | 7 19 25 25 25 25 25 25 25 25 25 25 25 25 25 25 25 25 16 5 Most Carried 25 | 6 21 25 25 25 25 25 25 25 25 25 25 25 25 25 25 25 25 25 5 Average Carried 22 | 4 12 23 24 24 24 24 24 25 25 25 24 24 24 24 24 24 23 16 4 Final Capacity 25 | 8 25 25 25 25 25 25 25 25 25 25 25 25 25 25 25 25 25 5 5 Final Carried 25 | 6 21 25 25 25 25 25 25 25 25 25 25 25 25 25 25 25 25 5 5 Class Distribution -------------------- 55% | Mutant 11% | Skirmisher 11% | Scavenger-Mutant 11% | Assassin 4% | Scavenger-Skirmisher Dominant Class ---------------- Mutant | -10/Materials Mutant | -10/Mines Mutant | -9/Materials Mutant | -9/Mines Scavenger-Mutant | -8/Materials Mutant | -8/Storage Mutant | -7/Factory Assassin | -7/Lower Caves Assassin | -7/Lower Caves Skirmisher | -7/Data Miner Skirmisher | -6/Proximity Caves Assassin | -6/Factory Commander-Skirmisher | -6/Extension Mutant | -6/Cetus Scavenger-Mutant | -6/Archives Scavenger-Skirmisher | -6/Hub_04(d) Scavenger-Skirmisher | -5/Factory Scavenger-Skirmisher | -5/Waste Mutant | -5/Factory Resources | -11 -10 -10 -9 -9 -8 -8 -7 -7 -7 -7 -6 -6 -6 -6 -6 -6 -5 -5 -5 ----------- Run | Yrd Mat Min Mat Min Mat Sto Fac Low Low Dat Pro Fac Ext Cet Arc Hub Fac Was Fac Matter Collected 6163 | 287 299 242 711 133 1013 771 589 151 144 . 279 390 304 65 131 92 247 . 315 Remotely 118 | . . . . . . . . . . . . . . . . . . . 118 Salvage Created 12209 | 138 728 147 1472 388 1623 2012 825 193 159 . 451 773 913 158 396 857 585 . 391 Parts 622 | 6 50 11 86 8 88 111 48 6 11 . 11 37 38 9 24 41 20 . 17 Haulers Intercepted 19 | . 2 . 4 . 6 6 1 . . . . . . . . . . . . Recyclers Shooed 4 | . . . . . 1 . . . . . . . . . . 2 1 . . Parts Field Recycled . | . . . . . . . . . . . . . . . . . . . . Retrieved Matter . | . . . . . . . . . . . . . . . . . . . . Parts Self-Destructed 11 | . . . . . . . . 3 7 . 1 . . . . . . . . Prevented 3 | . . . . . . . . . 1 . 2 . . . . . . . . Kills | -11 -10 -10 -9 -9 -8 -8 -7 -7 -7 -7 -6 -6 -6 -6 -6 -6 -5 -5 -5 ------- Run | Yrd Mat Min Mat Min Mat Sto Fac Low Low Dat Pro Fac Ext Cet Arc Hub Fac Was Fac Combat Hostiles Destroyed 206 | . 17 6 26 19 26 29 19 3 5 . 11 11 12 2 2 9 6 . 3 Melee 1 | . . . . . . . 1 . . . . . . . . . . . . Guns 119 | . 17 4 17 19 26 26 10 . . . . . . . . . . . . Cannons 30 | . . . 6 . . . . 1 1 . 1 3 5 . 1 5 6 . 1 AOE 40 | . . 2 3 . . 3 8 2 4 . 8 3 2 . . 3 . . 2 Classes Destroyed 19 | 2 6 . 2 1 3 1 1 1 . . . . 1 . . 1 . . . Worker 17 | . . . 1 1 1 3 2 . . . . 2 1 . . 6 . . . Builder 7 | . 1 . . 1 . . 1 . . . . 1 . . . 2 . . 1 Tunneler 9 | 4 . . 2 1 . . . . . . . 1 1 . . . . . . Hauler 19 | . 2 . 4 . 6 6 1 . . . . . . . . . . . . Recycler 11 | 1 . . 1 . 3 2 1 . . . . . . . . . 2 . 1 Mechanic 6 | . . . . . 1 3 1 . . . . . . . . . . . 1 Operator 11 | . 1 . 1 . . 1 . . . . . . . . 7 1 . . . Watcher 19 | . 3 . 3 . 3 2 1 . . . . 1 1 . . 3 . . 2 Swarmer 39 | . 5 3 3 . 10 3 9 . 4 . 2 . . . . . . . . Grunt 85 | . 12 3 15 1 9 8 7 2 . . 4 9 6 . . 5 4 . . Brawler 3 | . . . . . . 2 . 1 . . . . . . . . . . . Duelist 5 | . . . . . 1 2 1 . . . 1 . . . . . . . . Sentry 37 | . . . 8 . 5 13 . . . . 1 2 4 . 2 2 . . . Hunter 7 | . . . . . 1 1 . . 1 . . . 1 . . . . . 3 Programmer 5 | . . . . . . . 2 . . . . . . . . 1 2 . . Heavy 1 | . . . . . . . . . . . . . . . . 1 . . . Behemoth 1 | . . . . . . . . . . . . . 1 . . . . . . Cetus Guard 2 | . . . . . . . . . . . . . . 2 . . . . . Samaritan 3 | . . . . . . . . 2 1 . . . . . . . . . . Assembled 18 | . . . . 18 . . . . . . . . . . . . . . . Thug 1 | . . . . . . . . . . . . . 1 . . . . . . Savage 3 | . . . . . . . . . . . 3 . . . . . . . . Best Kill Streak 12 | 5 4 3 6 3 5 7 4 3 4 . 5 4 4 2 3 12 4 . 3 Combat Bots Only 6 | . 4 3 6 3 4 6 4 3 4 . 5 4 3 2 2 4 4 . 3 Max Kills in Single Turn 12 | 1 2 2 2 2 2 3 2 1 3 . 2 2 3 1 1 12 1 . 2 Gunslinging 1 | . 1 . . 1 1 1 . . . . . . . . . . . . . Exploded 3 | . . 2 2 . . 2 2 1 3 . 2 2 2 . . 3 . . 2 Melee 1 | . . . . . . . 1 . . . . . . . . . . . . Uniques/NPCs Destroyed . | . . . . . . . . . . . . . . . . . . . . Combat | -11 -10 -10 -9 -9 -8 -8 -7 -7 -7 -7 -6 -6 -6 -6 -6 -6 -5 -5 -5 -------- Run | Yrd Mat Min Mat Min Mat Sto Fac Low Low Dat Pro Fac Ext Cet Arc Hub Fac Was Fac Hostile Shots Fired 1241 | . 61 27 80 31 115 116 93 3 24 . 78 99 175 17 20 52 49 10 191 Missed 400 | . 10 8 18 8 26 31 23 . 11 . 32 36 79 6 10 22 18 2 60 Damage Taken 11598 | . 532 228 766 409 1075 1152 1150 36 175 . 271 621 912 246 241 530 600 390 2264 Core 1837 | . 122 34 163 46 101 79 115 . 60 . 34 33 12 28 . 4 139 208 659 Absorbed by Shields 848 | . . . . . 99 . 104 12 4 . 140 164 187 50 . . . . 88 Ignored by Resistances 393 | . . . . . . 69 61 . 5 . 48 38 80 . 8 34 50 . . Regen/Repaired (Parts) 1291 | . . . 179 . . 672 32 80 27 . 40 90 123 . 2 . 30 16 . Core Remaining (%) 68 | 100 . 37 . 47 . 67 . . . . 70 . . . . 90 . . . Volleys Fired 734 | 17 63 16 76 38 116 92 51 6 5 . 21 28 46 9 47 34 31 10 28 Largest 2 | 2 2 2 2 2 2 2 2 1 2 . 2 2 2 2 2 2 2 2 2 Hottest 240 | 70 112 112 136 161 122 122 122 69 138 . 138 138 159 240 159 175 175 170 130 Shots Fired 1277 | 34 119 30 143 76 212 180 88 6 6 . 30 47 75 17 52 52 50 18 42 Gun 848 | 34 117 28 117 75 206 176 80 . . . . . . 1 . . . . 14 Cannon 372 | . . . 19 . . . . 1 2 . 21 42 71 16 52 52 50 18 28 Launcher 44 | . . 2 3 . . 4 8 5 4 . 9 5 4 . . . . . . Special 13 | . 2 . 4 1 6 . . . . . . . . . . . . . . Kinetic 262 | 17 16 . . . 152 54 23 . . . . . . . . . . . . Thermal 810 | 17 100 28 140 76 60 122 57 . . . . 1 22 1 42 34 50 18 42 Explosive 44 | . . 2 3 . . 4 8 5 4 . 9 5 4 . . . . . . Electromagnetic 161 | . 3 . . . . . . 1 2 . 21 41 49 16 10 18 . . . Robot Hit Streak 17 | 10 14 15 17 5 16 16 13 13 2 . 17 7 14 8 11 11 8 9 8 Robot Miss Streak 5 | 3 2 1 3 4 3 3 5 1 2 . 1 2 2 1 5 4 2 2 2 Penetration Max . | . . . . . . . . . . . . . . . . . . . . Secondary Targets 13 | . 2 1 . 4 3 2 1 . . . . . . . . . . . . Max Gunslinging Chain 1 | . 1 1 . 1 1 1 1 . . . . . . . . . . . . Shots Hit Robots 865 | 25 80 20 89 38 144 128 72 8 4 . 25 40 53 13 33 30 28 15 20 Core Hits 458 | 8 37 7 42 23 56 64 45 9 9 . 22 22 30 3 20 33 14 2 12 Critical Kills 2 | . . . . . . . . . . . . . 1 . . 1 . . . Critical Parts Destroyed . | . . . . . . . . . . . . . . . . . . . . Critical Strikes 40 | 5 1 2 6 1 2 16 4 . 1 . . . 1 . . 1 . . . Burn 37 | 5 1 2 6 1 2 16 4 . . . . . . . . . . . . Meltdown 2 | . . . . . . . . . . . . . 1 . . 1 . . . Sever 1 | . . . . . . . . . 1 . . . . . . . . . . Melee Attacks 42 | . . . . . . 2 12 5 6 . . 17 . . . . . . . Impact . | . . . . . . . . . . . . . . . . . . . . Slashing 42 | . . . . . . 2 12 5 6 . . 17 . . . . . . . Piercing . | . . . . . . . . . . . . . . . . . . . . Sneak Attacks 15 | . . . . . . . 4 4 2 . . 5 . . . . . . . Combat Hostiles . | . . . . . . . . . . . . . . . . . . . . Follow-up Attacks . | . . . . . . . . . . . . . . . . . . . . Damage Inflicted 26327 | 273 1041 403 2042 808 2823 3060 2387 638 416 . 1346 1951 2593 374 1126 2847 901 491 807 Guns 10863 | 273 1038 272 1457 786 2823 2682 1424 . . . . . . . . . . . 108 Cannons 7633 | . . . 307 . . . . 33 30 . 457 919 1544 374 1126 1034 901 491 417 Explosions 6813 | . . 131 278 . . 378 681 355 259 . 889 705 1049 . . 1813 . . 275 Melee 986 | . . . . . . . 282 250 127 . . 327 . . . . . . . Ramming 32 | . 3 . . 22 . . . . . . . . . . . . . . 7 Kinetic 3653 | 99 80 . . . 2163 866 445 . . . . . . . . . . . . Thermal 12330 | 174 933 272 1764 786 660 1816 979 . . . 100 256 812 . 897 689 901 491 800 Explosive 4087 | . . 131 278 . . 378 681 355 259 . 789 480 736 . . . . . . Electromagnetic 5239 | . 25 . . . . . . 33 30 . 457 888 1045 374 229 2158 . . . Impact . | . . . . . . . . . . . . . . . . . . . . Slashing 986 | . . . . . . . 282 250 127 . . 327 . . . . . . . Piercing . | . . . . . . . . . . . . . . . . . . . . Highest Corruption 20 | . 1 1 . . . . . . . . 2 . . 12 12 20 3 3 5 Average Corruption 3 | . 1 1 . . . . . . . . 2 . . 12 9 16 2 3 3 Corruption Purged 12 | . . . . . . . . . . . . . . . 12 . . . . Corruption Blocked . | . . . . . . . . . . . . . . . . . . . . Effects 54 | . 7 5 . . . . . . . . . . . 9 5 . 1 6 21 Message Errors 10 | . 1 . . . . . . . . . . . . . 1 . . 1 7 Matter Fused 11 | . 1 1 . . . . . . . . . . . 3 1 . 1 1 3 Heat Flow Errors 10 | . 1 2 . . . . . . . . . . . 1 1 . . 2 3 Energy Discharges 6 | . 2 1 . . . . . . . . . . . . . . . 1 2 Parts Rejected 2 | . 1 . . . . . . . . . . . . . . . . 1 . Parts Fused 1 | . . 1 . . . . . . . . . . . . . . . . . Data Loss (minor) 2 | . . . . . . . . . . . . . . 2 . . . . . Data Loss (major) 4 | . . . . . . . . . . . . . . 3 . . . . 1 Misfires 4 | . 1 . . . . . . . . . . . . . . . . . 3 Weapon Failures 4 | . . . . . . . . . . . . . . . 2 . . . 2 Overload Shots 1 | . . . . . . . . . . . . . . 1 . . . . . Overflow Damage 929 | . . 26 . . . . 62 87 . . . 175 80 17 46 340 57 . 39 Projectiles 212 | . . . . . . . . . . . . 21 54 17 46 11 57 . 6 Explosions 456 | . . 26 . . . . 20 . . . . 22 26 . . 329 . . 33 Melee 261 | . . . . . . . 42 87 . . . 132 . . . . . . . Knockbacks . | . . . . . . . . . . . . . . . . . . . . Impact . | . . . . . . . . . . . . . . . . . . . . Kinetic . | . . . . . . . . . . . . . . . . . . . . Secondary . | . . . . . . . . . . . . . . . . . . . . Self-Inflicted Damage 344 | . . . . 11 . . 78 . 4 . . 53 40 . . 113 . . 45 Shots 9 | . . . . . . . 3 . 1 . . 1 1 . . 2 . . 1 Rammed 4 | . . . . 2 . . . . . . . . . . . . . . 2 Targets Rammed 6 | . 2 . . 2 . . . . . . . . . . . . . . 2 Kicked 2 | . 2 . . . . . . . . . . . . . . . . . . Crushed . | . . . . . . . . . . . . . . . . . . . . Highest Temperature 392 | 162 249 250 199 270 168 198 198 38 33 . 180 122 255 198 239 251 392 222 230 Average Temperature 65 | 53 58 70 67 88 28 44 59 18 18 . 73 23 69 93 55 82 129 108 53 Received Heat Transfer 2934 | . 228 111 312 112 448 450 215 19 . . 75 248 308 . 63 189 81 . 75 Effects 8 | . 4 . . . . . . . . . . . 3 . . . 1 . . Energy Bleed 1 | . . . . . . . . . . . . . . . . . 1 . . Interference 7 | . 4 . . . . . . . . . . . 3 . . . . . . Siege Activations . | . . . . . . . . . . . . . . . . . . . . Robots Corrupted 13 | . . . . . . . . . . . 2 5 4 2 . . . . . Combat Hostiles 13 | . . . . . . . . . . . 2 5 4 2 . . . . . Parts Fried 19 | . . . . . . . . . . . 2 3 2 1 . 11 . . . Impact Corruptions . | . . . . . . . . . . . . . . . . . . . . Robots Melted 3 | . . . . . . . . . . . . . 1 . 1 1 . . . Combat Hostiles 3 | . . . . . . . . . . . . . 1 . 1 1 . . . Parts Melted 66 | 3 11 2 10 1 . 14 6 . . . . . 1 . 10 3 3 . 2 Heat Transferred 23751 | 888 2529 814 3774 1517 1369 4477 1924 . . . 100 250 1050 . 1400 987 1127 605 940 Parts Sabotaged . | . . . . . . . . . . . . . . . . . . . . Parts Stolen . | . . . . . . . . . . . . . . . . . . . . Parts Stripped . | . . . . . . . . . . . . . . . . . . . . Power Chain Reactions 7 | . . . . . . . . . . . 2 3 1 . . 1 . . . Alert | -11 -10 -10 -9 -9 -8 -8 -7 -7 -7 -7 -6 -6 -6 -6 -6 -6 -5 -5 -5 ------- Run | Yrd Mat Min Mat Min Mat Sto Fac Low Low Dat Pro Fac Ext Cet Arc Hub Fac Was Fac Peak Influence 971 | 25 347 215 571 157 401 661 353 . . . . 248 387 233 135 971 528 87 244 Initial 378 | . 16 93 25 156 . 107 276 . . . . . 28 98 13 . 378 85 . Average 207 | 9 174 88 300 52 236 425 244 . . . . 88 154 203 111 287 425 54 76 Maximum Alert Level 3 | . 1 1 2 . 2 2 1 . . . . 1 1 1 . 3 2 . 1 Low Security (%) 53 | 100 60 88 30 100 29 11 26 . . . . 94 76 23 100 50 . 100 90 Level 1 34 | . 39 11 28 . 68 36 73 . . . . 5 23 76 . 27 57 . 9 Level 2 11 | . . . 40 . 2 51 . . . . . . . . . . 42 . . Level 3 . | . . . . . . . . . . . . . . . . 22 . . . Level 4 . | . . . . . . . . . . . . . . . . . . . . Level 5 . | . . . . . . . . . . . . . . . . . . . . High Security . | . . . . . . . . . . . . . . . . . . . . Max Security . | . . . . . . . . . . . . . . . . . . . . Squads Dispatched 31 | . 4 . 3 1 3 4 5 . . . . 3 1 . . 1 1 . 5 Investigation 8 | . 3 . 2 . 1 . 1 . . . . . 1 . . . . . . Extermination 6 | . . . . . . . 2 . . . . 1 . . . 1 1 . 1 Reinforcement 14 | . 1 . 1 1 2 1 2 . . . . 2 . . . . . . 4 Assault 1 | . . . . . . 1 . . . . . . . . . . . . . Garrison 2 | . . . . . . 2 . . . . . . . . . . . . . Intercept . | . . . . . . . . . . . . . . . . . . . . Searches Triggered . | . . . . . . . . . . . . . . . . . . . . Construction Impeded 4 | . . . . 1 1 . . . . . . 1 . . . . . . 1 Haulers Reinforced . | . . . . . . . . . . . . . . . . . . . . Active Scanning Responses . | . . . . . . . . . . . . . . . . . . . . Cargo Convoy Interrupts . | . . . . . . . . . . . . . . . . . . . . Stealth | -11 -10 -10 -9 -9 -8 -8 -7 -7 -7 -7 -6 -6 -6 -6 -6 -6 -5 -5 -5 --------- Run | Yrd Mat Min Mat Min Mat Sto Fac Low Low Dat Pro Fac Ext Cet Arc Hub Fac Was Fac Distress Signals 11 | . . . 4 1 1 1 1 . . . . . 1 1 . 1 . . . Communications Jammed 8 | . . . . . . . . . . . . . . . . 8 . . . Distress Signals 8 | . . . . . . . . . . . . . . . . 8 . . . Times Spotted 339 | . 32 8 38 19 38 39 28 3 5 . 14 15 26 6 24 9 8 6 21 Peak Tracking Total 12 | . 3 3 7 3 5 4 4 3 4 . 5 4 7 5 2 6 4 6 12 Tactical Retreats 20 | . 5 1 1 . 4 . 1 . . . . 1 2 . . 2 . 1 2 Traps | -11 -10 -10 -9 -9 -8 -8 -7 -7 -7 -7 -6 -6 -6 -6 -6 -6 -5 -5 -5 ------- Run | Yrd Mat Min Mat Min Mat Sto Fac Low Low Dat Pro Fac Ext Cet Arc Hub Fac Was Fac Traps Triggered 15 | . 3 . . . 1 2 3 . . . . . 3 . . . 2 . 1 Indirectly . | . . . . . . . . . . . . . . . . . . . . Trap Hack Attempts . | . . . . . . . . . . . . . . . . . . . . Triggered . | . . . . . . . . . . . . . . . . . . . . Disarmed . | . . . . . . . . . . . . . . . . . . . . Reprogrammed . | . . . . . . . . . . . . . . . . . . . . Reused . | . . . . . . . . . . . . . . . . . . . . Traps Extracted . | . . . . . . . . . . . . . . . . . . . . Installed . | . . . . . . . . . . . . . . . . . . . . Triggered . | . . . . . . . . . . . . . . . . . . . . Most Traps Carried 4 | . . 4 4 . . . . . . . . . . . . . . . . Machines | -11 -10 -10 -9 -9 -8 -8 -7 -7 -7 -7 -6 -6 -6 -6 -6 -6 -5 -5 -5 ---------- Run | Yrd Mat Min Mat Min Mat Sto Fac Low Low Dat Pro Fac Ext Cet Arc Hub Fac Was Fac Machines Disabled 45 | . 1 . 4 . 1 3 4 . . . . 2 . 2 3 20 3 . 2 Max in Single Turn 18 | . 1 . 1 . 1 1 1 . . . . 1 . 1 1 18 1 . 2 Garrison Access 3 | . . . . . . 1 . . . . . 2 . . . . . . . Network Hub 2 | . . . . . . . . . . . . . . . . 2 . . . Machines Repaired . | . . . . . . . . . . . . . . . . . . . . Machines Dismantled . | . . . . . . . . . . . . . . . . . . . . Machines Sabotaged . | . . . . . . . . . . . . . . . . . . . . Overloaded Fab Kills . | . . . . . . . . . . . . . . . . . . . . Hacking | -11 -10 -10 -9 -9 -8 -8 -7 -7 -7 -7 -6 -6 -6 -6 -6 -6 -5 -5 -5 --------- Run | Yrd Mat Min Mat Min Mat Sto Fac Low Low Dat Pro Fac Ext Cet Arc Hub Fac Was Fac Machines Accessed 77 | . 8 . 10 . 7 13 7 . 1 3 . 11 6 . . 3 2 . 6 Terminals 61 | . 7 . 8 . 7 10 7 . . . . 7 6 . . 3 2 . 4 Fabricators 1 | . . . . . . . . . . . . . . . . . . . 1 Repair Stations 7 | . . . 2 . . 2 . . . . . 2 . . . . . . 1 Recycling Units 1 | . 1 . . . . . . . . . . . . . . . . . . Scanalyzers . | . . . . . . . . . . . . . . . . . . . . Garrison Access 3 | . . . . . . 1 . . . . . 2 . . . . . . . Total Hacks 289 | . 36 . 50 . 26 37 18 . 1 26 . 39 18 . . 7 10 . 21 Successful 164 | . 21 . 31 . 17 26 5 . 1 26 . 16 7 . . 3 3 . 8 Failed 125 | . 15 . 19 . 9 11 13 . . . . 23 11 . . 4 7 . 13 Catastrophic 15 | . 1 . 3 . . . 2 . . . . 2 3 . . 2 . . 2 Database Lockouts . | . . . . . . . . . . . . . . . . . . . . Manual 147 | . 24 . 33 . 16 13 9 . . . . 29 8 2 . 5 3 . 5 Terminals 226 | . 35 . 45 . 26 23 18 . . . . 30 18 . . 7 10 . 14 Fabricators 3 | . . . . . . . . . . . . . . . . . . . 3 Repair Stations 28 | . . . 5 . . 13 . . . . . 6 . . . . . . 4 Recycling Units 1 | . 1 . . . . . . . . . . . . . . . . . . Scanalyzers . | . . . . . . . . . . . . . . . . . . . . Garrison Access 4 | . . . . . . 1 . . . . . 3 . . . . . . . Terminal Hacks 87 | . 11 . 16 . 9 6 3 . 1 26 . 4 5 . . 1 2 . 3 Record 6 | . . . . . . . . . . 6 . . . . . . . . . Part Schematic 12 | . . . 1 . . . . . . 11 . . . . . . . . . Robot Schematic 6 | . . . . . . . . . . 6 . . . . . . . . . Robot Analysis 5 | . 3 . 1 . 1 . . . . . . . . . . . . . . Prototype ID Bank 10 | . 3 . 2 . 1 . . . . 3 . . 1 . . . . . . Open Door 5 | . . . . . . 4 . . 1 . . . . . . . . . . Open DSF 1 | . . . . . . . . . . . . . . . . . . . 1 Branch Access Points 2 | . . . 1 . . . . . . . . . . . . . . . 1 Emergency Access Points 1 | . 1 . . . . . . . . . . . . . . . . . . Terminal Index 2 | . . . . . 1 . 1 . . . . . . . . . . . . Alert Level 7 | . 1 . 1 . 1 1 . . . . . . 2 . . . 1 . . Unreport Threat 4 | . . . 1 . 1 . . . . . . . 1 . . . 1 . . Locate Traps 17 | . 3 . 5 . 3 . 2 . . . . 2 1 . . . . . 1 Patrol Status 1 | . . . . . . . . . . . . 1 . . . . . . . Hauler Manifests 1 | . . . 1 . . . . . . . . . . . . . . . . Zone Layout 7 | . . . 3 . 1 1 . . . . . 1 . . . 1 . . . Fabricator Hacks 1 | . . . . . . . . . . . . . . . . . . . 1 Network Status 1 | . . . . . . . . . . . . . . . . . . . 1 Repair Station Hacks 15 | . . . 4 . . 10 . . . . . . . . . . . . 1 Scan Component 7 | . . . 2 . . 5 . . . . . . . . . . . . . Repair 7 | . . . 2 . . 5 . . . . . . . . . . . . . Refit 1 | . . . . . . . . . . . . . . . . . . . 1 Recycling Unit Hacks . | . . . . . . . . . . . . . . . . . . . . Scanalyzer . | . . . . . . . . . . . . . . . . . . . . Garrison Access Hacks 3 | . . . . . . 1 . . . . . 2 . . . . . . . Seal Access 3 | . . . . . . 1 . . . . . 2 . . . . . . . Unauthorized Hacks 58 | . 10 . 11 . 8 9 2 . . . . 10 2 . . 2 1 . 3 Terminals 56 | . 9 . 11 . 8 8 2 . . . . 10 2 . . 2 1 . 3 Track 6 | . 1 . 1 . . 1 . . . . . 1 . . . . . . 2 Assimilate 1 | . . . . . . . . . . . . 1 . . . . . . . Botnet 15 | . 2 . 3 . 2 2 1 . . . . 2 1 . . 1 . . 1 Disrupt 1 | . . . . . . . 1 . . . . . . . . . . . . Operators 4 | . 1 . . . 1 . . . . . . 1 . . . 1 . . . Skim 29 | . 5 . 7 . 5 5 . . . . . 5 1 . . . 1 . . Fabricators . | . . . . . . . . . . . . . . . . . . . . Repair Stations 1 | . . . . . . 1 . . . . . . . . . . . . . Mechanics 1 | . . . . . . 1 . . . . . . . . . . . . . Recycling Units 1 | . 1 . . . . . . . . . . . . . . . . . . Tunnel 1 | . 1 . . . . . . . . . . . . . . . . . . Scanalyzers . | . . . . . . . . . . . . . . . . . . . . Garrison Access . | . . . . . . . . . . . . . . . . . . . . Data Cores Recovered 2 | . . . . . . 1 . . . . . . 1 . . . . . . Used 1 | . . . . . . . . . . . . . 1 . . . . . . Hacking Detections 65 | . 7 . 8 . 7 9 7 . . . . 10 6 1 . 3 2 . 5 Full Trace Events 4 | . . . 2 . 1 . 1 . . . . . . . . . . . . Feedback Events . | . . . . . . . . . . . . . . . . . . . . Feedback Blocked . | . . . . . . . . . . . . . . . . . . . . Robot Schematics Acquired 6 | . . . . . . . . . . 6 . . . . . . . . . Robots Built . | . . . . . . . . . . . . . . . . . . . . Authchips . | . . . . . . . . . . . . . . . . . . . . Time . | . . . . . . . . . . . . . . . . . . . . Total Robot Build Rating . | . . . . . . . . . . . . . . . . . . . . Part Schematics Acquired 12 | . . . 1 . . . . . . 11 . . . . . . . . . Parts Built . | . . . . . . . . . . . . . . . . . . . . Authchips . | . . . . . . . . . . . . . . . . . . . . Time . | . . . . . . . . . . . . . . . . . . . . Total Part Build Rating . | . . . . . . . . . . . . . . . . . . . . Parts Repaired 7 | . . . 2 . . 5 . . . . . . . . . . . . . Time 286 | . . . 64 . . 222 . . . . . . . . . . . . . Parts Recycled . | . . . . . . . . . . . . . . . . . . . . Recycled Matter . | . . . . . . . . . . . . . . . . . . . . Retrieved Matter . | . . . . . . . . . . . . . . . . . . . . Retrieved Components . | . . . . . . . . . . . . . . . . . . . . Parts Scanalyzed . | . . . . . . . . . . . . . . . . . . . . Part Schematics Acquired . | . . . . . . . . . . . . . . . . . . . . Parts Damaged . | . . . . . . . . . . . . . . . . . . . . Bothacking | -11 -10 -10 -9 -9 -8 -8 -7 -7 -7 -7 -6 -6 -6 -6 -6 -6 -5 -5 -5 ------------ Run | Yrd Mat Min Mat Min Mat Sto Fac Low Low Dat Pro Fac Ext Cet Arc Hub Fac Was Fac Used RIF Installer . | . . . . . . . . . . . . . . . . . . . . Robots Hacked . | . . . . . . . . . . . . . . . . . . . . Non-combat . | . . . . . . . . . . . . . . . . . . . . Combat . | . . . . . . . . . . . . . . . . . . . . Robot Hacks Applied . | . . . . . . . . . . . . . . . . . . . . Relay Couplers Released 1 | . . . . . . 1 . . . . . . . . . . . . . Machine Destruction 1 | . . . . . . 1 . . . . . . . . . . . . . Fabnet Peak Effective % . | . . . . . . . . . . . . . . . . . . . . Robots Rewired 11 | . . . . . . . . . . . . . 11 . . . . . . Allies Hacked . | . . . . . . . . . . . . . . . . . . . . Hacks Repelled . | . . . . . . . . . . . . . . . . . . . . Allies | -11 -10 -10 -9 -9 -8 -8 -7 -7 -7 -7 -6 -6 -6 -6 -6 -6 -5 -5 -5 -------- Run | Yrd Mat Min Mat Min Mat Sto Fac Low Low Dat Pro Fac Ext Cet Arc Hub Fac Was Fac Total Allies 17 | . . 1 . . . . . . . . . 1 15 . . . . . . Largest Group 10 | . . 1 1 . . . . . . . . 1 10 7 5 . . . . Highest-Rated Group 325 | . . 31 31 . . . . . . . . 10 325 325 269 . . . . Highest-Rated Ally 159 | . . 31 31 . . . . . . . . 10 159 159 159 . . . . Total Orders 4 | . . . . . . . 4 . . . . . . . . . . . . EXPLORE 2 | . . . . . . . 2 . . . . . . . . . . . . RETURN 2 | . . . . . . . 2 . . . . . . . . . . . . Ally Attacks 136 | . . . 18 . . . . . . . . . 78 21 19 . . . . Total Damage 2543 | . . . 210 . . . . . . . . . 1684 440 209 . . . . Kills 20 | . . . 4 . . . . . . . . . 11 3 2 . . . . Allies Corrupted . | . . . . . . . . . . . . . . . . . . . . Allies Melted . | . . . . . . . . . . . . . . . . . . . . Intel | -11 -10 -10 -9 -9 -8 -8 -7 -7 -7 -7 -6 -6 -6 -6 -6 -6 -5 -5 -5 ------- Run | Yrd Mat Min Mat Min Mat Sto Fac Low Low Dat Pro Fac Ext Cet Arc Hub Fac Was Fac Robot Analysis Total 4 | . 2 . 1 . 1 . . . . . . . . . . . . . . Derelict Logs Recovered 7 | . . 1 . 2 . . . 1 1 . 2 . . . . . . . . Drone Launches 2 | . . . . . . . 2 . . . . . . . . . . . . Drone Recoveries 2 | . . . . . . . 2 . . . . . . . . . . . . Exploration | -11 -10 -10 -9 -9 -8 -8 -7 -7 -7 -7 -6 -6 -6 -6 -6 -6 -5 -5 -5 ------------- Run | Yrd Mat Min Mat Min Mat Sto Fac Low Low Dat Pro Fac Ext Cet Arc Hub Fac Was Fac Turns Passed 20157 | 149 1470 640 1740 1650 2025 1830 1925 1245 1085 140 827 1383 1360 405 405 477 432 216 753 Spaces Moved 9938 | 72 832 405 832 467 779 738 1051 807 666 75 453 700 634 223 105 213 181 199 506 Core 226 | 9 . . . . . . . . . . . . . . . . . 139 78 Treads 58 | . 56 2 . . . . . . . . . . . . . . . . . Legs 289 | 63 220 . . . . . . . . . . . . . . . . . 6 Wheels 9312 | . 556 403 832 467 779 738 1051 807 666 75 453 700 634 223 105 213 181 60 369 Hover 53 | . . . . . . . . . . . . . . . . . . . 53 Flight . | . . . . . . . . . . . . . . . . . . . . Fastest Speed 50 | 50 120 135 135 140 140 140 145 145 145 160 160 160 160 160 160 160 160 50 50 Average Speed 145 | 111 136 135 149 147 140 150 148 148 147 160 160 160 160 160 167 160 172 81 100 Slowest Speed 320 | 120 320 320 150 150 140 225 160 160 160 160 160 160 160 160 175 175 175 160 240 Overloaded Moves . | . . . . . . . . . . . . . . . . . . . . Propulsion Burnouts . | . . . . . . . . . . . . . . . . . . . . Robots Hopped . | . . . . . . . . . . . . . . . . . . . . Cave-ins Triggered . | . . . . . . . . . . . . . . . . . . . . Exploration Rate (%) 63 | 4 93 96 97 97 55 93 34 92 85 68 68 19 87 65 66 26 6 97 16 Regions Visited 19 Branch Regions 11 Pre-discovered Areas 12 | . 1 1 . 1 3 2 . . . 1 1 2 . . . . . . . Known Exits Taken 15 | . . 1 1 1 1 1 1 1 1 1 1 1 1 1 1 1 . . . Unknown Exits Taken 2 | 1 1 . . . . . . . . . . . . . . . . . . Scrap Searched 12 | . . 1 . 1 . . . 2 4 . 4 . . . . . . . . Spaces Dug 87 | . 2 . 11 1 4 9 4 7 13 . 6 12 1 . . 7 3 . 7 Terrain Destroyed 741 | . 2 12 21 1 6 37 45 30 28 . 69 60 35 . 3 324 15 1 52 Melee 23 | . . . . . . 2 4 1 4 . . 12 . . . . . . . Projectile 60 | . 2 . 3 1 6 . . . . . . . 6 . 3 10 15 1 13 AOE 658 | . . 12 18 . . 35 41 29 24 . 69 48 29 . . 314 . . 39 Terrain Rammed . | . . . . . . . . . . . . . . . . . . . . Walls Destroyed . | . . . . . . . . . . . . . . . . . . . . Machines Disabled . | . . . . . . . . . . . . . . . . . . . . Actions | -11 -10 -10 -9 -9 -8 -8 -7 -7 -7 -7 -6 -6 -6 -6 -6 -6 -5 -5 -5 --------- Run | Yrd Mat Min Mat Min Mat Sto Fac Low Low Dat Pro Fac Ext Cet Arc Hub Fac Was Fac Total 14163 | 108 1043 460 1169 1345 1485 1263 1297 836 747 95 517 883 902 256 280 290 246 232 709 Wait 2461 | 5 84 17 141 817 494 337 84 9 54 21 18 80 28 10 103 18 10 13 118 Move 9920 | 71 831 404 831 466 778 737 1050 806 665 74 452 699 633 222 104 212 181 198 506 Hop . | . . . . . . . . . . . . . . . . . . . . Pick Up 188 | 8 23 7 26 3 26 11 20 1 2 . 4 13 17 4 5 3 5 2 8 Fast Attach 80 | 5 2 . 8 3 6 11 4 . 2 . . . 2 3 5 2 2 3 22 Attach 49 | 2 1 . 3 1 5 3 8 . . . . 5 2 . 5 1 5 2 6 Detach 10 | . . . 2 . . . 1 . . . . . 1 . 2 . . . 4 Swap 321 | . 24 12 48 10 32 38 34 8 9 . 19 31 22 1 3 15 12 2 1 Drop 184 | . 13 4 34 5 28 16 17 1 4 . 3 10 15 7 6 5 . 2 14 Fire 734 | 17 63 16 76 38 116 92 51 6 5 . 21 28 46 9 47 34 31 10 28 Melee 42 | . . . . . . 2 12 5 6 . . 17 . . . . . . . Ram 4 | . . . . 2 . . . . . . . . . . . . . . 2 Kick 2 | . 2 . . . . . . . . . . . . . . . . . . Crush . | . . . . . . . . . . . . . . . . . . . . Escape Stasis 56 | . . . . . . 16 16 . . . . . 24 . . . . . . Rewire 112 | . . . . . . . . . . . . . 112 . . . . . . Trap . | . . . . . . . . . . . . . . . . . . . . Miscellaneous . | . . . . . . . . . . . . . . . . . . . . Route ------- -11/Scrapyard -10/Materials (discovered 6 exits: *Mat x3 / [*Min x2] / Sub) -10/Mines (discovered 3 exits: *Mat x2 / [*Exi]) -9/Materials (discovered 4 exits: *Mat x3 / *Min) -9/Mines (discovered 2 exits: *Mat x2) -8/Materials (discovered 5 exits: *Fac x3 / *Sto x2) -8/Storage (discovered 2 exits: *Fac / Rec) -7/Factory (discovered 6 exits: *Fac x4 / *Low x2) -7/Lower Caves -7/Lower Caves (discovered 2 exits: *Fac / *Dat) -7/Data Miner -6/Proximity Caves -6/Factory (discovered 4 exits: Fac / [*Low x2] / *Ext) -6/Extension (discovered 2 exits: *Fac / *Cet) -6/Cetus -6/Archives (discovered 2 exits: *Fac / *Hub) -6/Hub_04(d) -5/Factory (discovered 3 exits: Fac / *Upp x2) -5/Waste -5/Factory (discovered 3 exits: *Fac / Upp x2) History --------- Turn | Location | Event 2 | -11/Scrapyard | Met Revision 17 7 | -11/Scrapyard | Discovered new exit (range 16) 150 | -11/Scrapyard | Entered Materials 285 | -10/Materials | Discovered new exit (range 4) 310 | -10/Materials | Build established: Mutant 403 | -10/Materials | Discovered new exit (range 6) 812 | -10/Materials | Discovered new exit (range 14) 991 | -10/Materials | Discovered new exit (range 7) 1177 | -10/Materials | Discovered new exit (range 12) 1273 | -10/Materials | Learned 4 Recycling zone layouts 1318 | -10/Materials | Learned Storage emergency access door positions 1352 | -10/Materials | Learned location of 1 exit from Recycling 1384 | -10/Materials | Learned location of 1 exit from Storage 1406 | -10/Materials | Identified exit to Subcaves 1438 | -10/Materials | Loaded intel: 2 recycling unit locations 1620 | -10/Materials | Entered Mines 1621 | -10/Mines | Identified exit to Materials 1633 | -10/Mines | Deemed a non-threat by the Exiles lab entrance 1633 | -10/Mines | Discovered new exit (range 5) 1744 | -10/Mines | A weapon hastily lodged in a ceiling crevice suddenly fell to the ground 1835 | -10/Mines | Core integrity fell below 50% 1897 | -10/Mines | Found a hidden stash of uninstalled traps 1971 | -10/Mines | Learned Materials emergency access door positions 2230 | -10/Mines | Escorted by a lone wolf Derelict 2250 | -10/Mines | Learned location of Storage (-8) 2260 | -10/Mines | Entered Materials 2260 | -9/Materials | Accompanied by 1 ally 2260 | -9/Materials | Evolved 2 slots: Utility x2 2261 | -9/Materials | Identified exit to Materials 2585 | -9/Materials | Repaired Arm. Wheel 2757 | -9/Materials | Discovered exit to Materials (range 16) 2951 | -9/Materials | Discovered new exit (range 15) 3327 | -9/Materials | Repaired Med. Armor Plating 3742 | -9/Materials | Discovered exit to Materials (range 10) 3838 | -9/Materials | Identified exit to Mines 4000 | -9/Materials | Entered Mines 4010 | -9/Mines | Assembled infested the area 4875 | -9/Mines | Core integrity fell below 50% 4919 | -9/Mines | Discovered exit to Materials (range 8) 5020 | -9/Mines | Learned location of Zion (-6) 5310 | -9/Mines | Learned 2 Materials zone layouts 5591 | -9/Mines | Discovered exit to Materials (range 12) 5650 | -9/Mines | Entered Materials 5650 | -8/Materials | Evolved 2 slots: Utility x2 5651 | -8/Materials | Identified exit to Storage 6117 | -8/Materials | Build established: Scavenger-Mutant 6170 | -8/Materials | Discovered new exit (range 5) 6663 | -8/Materials | Discovered new exit (range 10) 6864 | -8/Materials | Learned Factory stockpile data 6944 | -8/Materials | Learned Storage trap positions 7077 | -8/Materials | Learned Factory security intel 7127 | -8/Materials | Learned Storage stockpile data 7324 | -8/Materials | Identified exit to Factory 7370 | -8/Materials | Build established: Mutant 7387 | -8/Materials | Learned location of 2 exits from Factory 7675 | -8/Materials | Entered Storage 7676 | -8/Storage | Identified exit to Recycling 7678 | -8/Storage | Loaded intel: 22 trap records 7744 | -8/Storage | Found Prototype Protection 7744 | -8/Storage | Identified Lgt. Regenerative Plating 8510 | -8/Storage | Repaired Prc. Assault Rifle 8543 | -8/Storage | Repaired Cooling System 8740 | -8/Storage | Garrison activated, responded to threat 8944 | -8/Storage | Repaired Rnf. Ion Engine 8995 | -8/Storage | Repaired Drone Bay 9035 | -8/Storage | Repaired Reactive Plating 9175 | -8/Storage | Learned 4 Recycling zone layouts 9210 | -8/Storage | Learned location of 2 exits from Factory 9254 | -8/Storage | Learned Factory scanalyzer intel 9261 | -8/Storage | Learned Factory stockpile data 9262 | -8/Storage | Learned 8 Factory zone layouts 9275 | -8/Storage | First assault squad dispatched 9281 | -8/Storage | Learned location of 1 exit from Storage 9505 | -8/Storage | Entered Factory 9505 | -7/Factory | Evolved 2 slots: Utility x2 9506 | -7/Factory | Identified exit to Lower Caves 9507 | -7/Factory | Identified exit to Factory 9511 | -7/Factory | Loaded intel: 4 scanalyzer locations 10333 | -7/Factory | Lost 4 parts (2n1u1w) 11430 | -7/Factory | Entered Lower Caves 11610 | -7/Lower Caves | Build established: Skirmisher 11691 | -7/Lower Caves | Learned Factory terminal intel 12120 | -7/Lower Caves | Build established: Assassin 12123 | -7/Lower Caves | Discovered new exit (range 14) 12369 | -7/Lower Caves | Encountered a Warlord checkpoint 12664 | -7/Lower Caves | Identified exit to Lower Caves 12675 | -7/Lower Caves | Entered another Lower Caves area 12741 | -7/Lower Caves | Discovered exit to Factory (range 5) 13262 | -7/Lower Caves | Learned 4 Factory zone layouts 13295 | -7/Lower Caves | Discovered new exit (range 5) 13301 | -7/Lower Caves | Identified exit to Data Miner 13760 | -7/Lower Caves | Entered Data Miner 13760 | -7/Data Miner | Discovered new exit (range 6) 13791 | -7/Data Miner | Met Data Miner 13820 | -7/Data Miner | Learned location of Section 7 (-2) 13820 | -7/Data Miner | Acquired the access code to Warlord's prototype stash 13828 | -7/Data Miner | Build established: Skirmisher 13842 | -7/Data Miner | Received God Mode back door access code from Data Miner 13877 | -7/Data Miner | Identified exit to Proximity Caves 13900 | -7/Data Miner | Entered Proximity Caves 14092 | -6/Proximity Caves | Attracted the attention of an 0b10 checkpoint 14305 | -6/Proximity Caves | Learned 4 Factory zone layouts 14583 | -6/Proximity Caves | Discovered exit to Factory (range 15) 14727 | -6/Proximity Caves | Entered Factory 14727 | -6/Factory | Evolved 2 slots: Utility x2 14728 | -6/Factory | Identified exit to Extension 14729 | -6/Factory | Identified exit to Factory 14731 | -6/Factory | Loaded intel: 28 terminal locations 15440 | -6/Factory | Discovered new exit (range 11) 15525 | -6/Factory | Discovered new exit (range 14) 15575 | -6/Factory | Build established: Hacker-Assassin 15767 | -6/Factory | Learned Extension stockpile data 15852 | -6/Factory | Learned 4 Factory zone layouts 15882 | -6/Factory | Learned location of Lower Caves (-6) 15929 | -6/Factory | Learned location of 1 exit from Extension 15960 | -6/Factory | Learned location of 1 exit from Hub_04(d) 16110 | -6/Factory | Entered Extension 16490 | -6/Extension | Rescued a captive Derelict 16500 | -6/Extension | Rescued a captive Derelict 16528 | -6/Extension | Rescued a captive Derelict 16645 | -6/Extension | Build established: Commander-Skirmisher 16945 | -6/Extension | Spotted B-75 Beast 16959 | -6/Extension | Allies destroyed B-75 Beast 16961 | -6/Extension | Spotted B-75 Beast 16966 | -6/Extension | Destroyed B-75 Beast 17010 | -6/Extension | Lost 6 allies 17226 | -6/Extension | Rescued A7 17435 | -6/Extension | Discovered new exit (range 6) 17463 | -6/Extension | Identified exit to Cetus 17470 | -6/Extension | Entered Cetus 17470 | -6/Cetus | Accompanied by 7 allies (A7) 17475 | -6/Cetus | Acquired a Cetus Manufacturing Module code from A7 17493 | -6/Cetus | Spotted Cetus Guard 17493 | -6/Cetus | Spotted Cetus Guard 17495 | -6/Cetus | Spotted Cetus Guard 17496 | -6/Cetus | Spotted Cetus Guard 17505 | -6/Cetus | Allies destroyed Cetus Guard 17507 | -6/Cetus | Destroyed Cetus Guard 17510 | -6/Cetus | Destroyed Cetus Guard 17515 | -6/Cetus | Allies destroyed Cetus Guard 17559 | -6/Cetus | Cetus Manufacturing Module disabled 17651 | -6/Cetus | Failed to start Cetus Manufacturing Module 17704 | -6/Cetus | System corruption reached 10% 17747 | -6/Cetus | Escorted A7 to Cetus Mainframe 17847 | -6/Cetus | Discovered new exit (range 15) 17870 | -6/Cetus | Identified exit to Archives 17875 | -6/Cetus | Entered Archives 17875 | -6/Archives | Accompanied by 5 allies (A7) 17880 | -6/Archives | Received a hacking code to weaken MAIN.C 17950 | -6/Archives | Lost 4 allies 18080 | -6/Archives | Discovered exit to Factory (range 16) 18134 | -6/Archives | Discovered new exit (range 13) 18180 | -6/Archives | Identified exit to Hub_04(d) 18280 | -6/Archives | Entered Hub_04(d) 18648 | -6/Hub_04(d) | Network Hub disabled 18648 | -6/Hub_04(d) | Network Hub disabled 18757 | -6/Hub_04(d) | Entered Factory 18757 | -5/Factory | Evolved 2 slots: Utility x2 18758 | -5/Factory | Identified exit to Upper Caves 18759 | -5/Factory | Identified exit to Factory 18799 | -5/Factory | Build established: Scavenger-Skirmisher 19189 | -5/Factory | Sucked down chute 19189 | -5/Factory | Entered Waste 19270 | -5/Waste | Spotted C-40 Crusher 19275 | -5/Waste | Spotted C-40 Crusher 19310 | -5/Waste | Crushed by Compactor (1 part destroyed, 1 dropped) 19313 | -5/Waste | Crushed by Compactor (0 parts destroyed, 2 dropped) 19316 | -5/Waste | Crushed by Compactor (1 part destroyed, 1 dropped) 19322 | -5/Waste | Crushed by Compactor (1 part destroyed, 1 dropped) 19325 | -5/Waste | Crushed by Compactor (1 part destroyed, 1 dropped) 19330 | -5/Waste | Crushed by Compactor (1 part destroyed, 2 dropped) 19344 | -5/Waste | Spotted C-40 Crusher 19356 | -5/Waste | Spotted C-40 Crusher 19358 | -5/Waste | Spotted C-40 Crusher 19361 | -5/Waste | Lost 8 parts (1p5u2w) 19365 | -5/Waste | Spotted C-40 Crusher 19368 | -5/Waste | Discovered new exit (range 16) 19394 | -5/Waste | Crushed by Compactor (1 part destroyed, 2 dropped) 19396 | -5/Waste | Crushed by Compactor (1 part destroyed) 19405 | -5/Waste | Entered Factory 19554 | -5/Factory | Core integrity fell below 50% 19597 | -5/Factory | Lost 7 parts (1n6u) 19625 | -5/Factory | Build established: Mutant 20083 | -5/Factory | Build established: Scavenger-Mutant 20122 | -5/Factory | Discovered exit to Factory (range 9) 20147 | -5/Factory | Core integrity fell below 20% 20158 | -5/Factory | Destroyed by S-27 Virus with Autogun Last Messages --------------- 20148_ System corrupted: FCS attempts to trigger Backup Laser III. 20148_ System corrupted: Backup Laser III misfires. 20148_ H-71 Marshal calls for reinforcements. 20148_ ALERT: Hostile activity reported, dispatching reinforcements to area. 20149_ Slug penetrates Wall. 20150_ S-27 Virus destroyed. 20150_ Slug penetrates Wall. 20150_ Imp. Shield Generator destroyed. 20150_ Knocked back. 20152_ Backup Laser III destroyed. 20152_ Slug penetrates Wall. 20154_ Penetrated by Slug. 20154_ Flexi-carbon Leg destroyed. 20154_ Penetrated by Slug. 20155_ ALERT: Rogue bot located, Programmers report to Factory Zone 7W. 20155_ Dropped Imp. Sensor Array. 20155_ Dropped Fission Core. 20156_ Imp. Sensor Array destroyed. 20157_ Penetrated by Slug. Map ----- +----------------------------------------------------+ | ?????????????????????????????????????????????????? | | ?????????????????????????????????????????????????? | | ?????????????????????????????????????????????????? | | ?????????????????????????????????????????????????? | | ?????????????????????????????????????????????????? | | ?????????????????????????????????????????????????? | | ?????????????????????????????????????????????????? | | ?????????????????????????????????????????????????? | | ?????????????????????????????????????????????????? | | ?????????????????????????????????????????????????? | | ????????????????????????? ?????????????????????? | | ????????????????????????# ???????????????????? | | ???????????????????????? #??????????????????? | | ???????????????????????? #??????????????????? | | ???????????????????????? #??????????????????? | | ???????????????????????? #??????????????????? | | ???????????????????????? #??????????????????? | | ???????????????????????? #??????????????????? | | ???????????????????????? #??????????????????? | | ????????????????????????# #??????????????????? | | ????????????????????????# #??????????????????? | | ????????????????????????# #??????????????????? | | ????????????????????????# #??????????????????? | | ????????????????????????# #??????????????????? | | ????????????????????????# #??????????????????? | | ????????????????????????#@ +??????????????????? | | ???????????????????????## #??????????????????? | | ??????????????#######??#; #??????????????????? | | ??????????????# ?#; ##?????????????????? | | ??????????????# "T" ?# #?????????????????? | | ??????????????# #! #?????????????????? | | ??????????????# #* # """????????????? | | ??????????????# ; s """????????????? | | ??????????????# """ ; % # """????????????? | | ??????????????? """ # #! ?????????????? | | ??????????????? """ # #?###############?? | | ???????????????? ##; ###?????# #?? | | ????????????????#######?#;Ys #???????# [ #?? | | ????????????????????????## #???????# #?? | | ???????????????###########s%*#???????# ### | | ???????????????# =% #???????# %# ! | | ???????????????# %=# #???????# # | | ???????????????# # H #???????# # | | ???????????????# + +???????# # | | ???????????????# # #???????# # | | ???????????????# # ######??# # | | ???????????????# # #### # | | ???????????????# # + # | | ???????????????########### #### # | | ?????????????????????????###"## #??# #*" | +----------------------------------------------------+ Best States ------------- Heat Dissipation 91 Coolant Potential 50 Energy Generation 25 Energy Capacity 350 Matter Stores 300 Matter Capacity 300 Sight Range 16 Robot Scan Range 15 Terrain Scan Range 16 Terrain Scan Density 10 Jamming Range 12 EM Shielding 2 Armor Coverage 975 Resistance: KI 20 Resistance: TH 15 Resistance: EM 25 Evasion (%) 55 Targeting Accuracy 8 Recoil Reduction 2 Energy Filtering 30 Particle Charging 15 Offensive Hacking 12 Defensive Hacking 22 Authchip Count 3 Item Schematics ----------------- Huge Storage Unit | -9/Materials | Hacked Combat Drone Bay | -7/Data Miner | Free Lgt. Regenerative Plating | -7/Data Miner | Free Cld. Aerolev Unit | -7/Data Miner | Free Gravity Neutralizer | -7/Data Miner | Free Antimatter Cannon | -7/Data Miner | Free Arm. Medium Treads | -7/Data Miner | Free Adv. Shield Generator | -7/Data Miner | Free Hyp. Coil Gun | -7/Data Miner | Free Imp. Reaction Control System | -7/Data Miner | Free Disruptor Cannon | -7/Data Miner | Free Adv. Thermal Shield | -7/Data Miner | Free Robot Schematics ------------------ B-48 Gladiator | -7/Data Miner | Free M-22 Extractor | -7/Data Miner | Free G-47 Trooper | -7/Data Miner | Free X-67 Chaingunner | -7/Data Miner | Free S-27 Virus | -7/Data Miner | Free B-60 Warrior | -7/Data Miner | Free Fabricated ------------ Nothing Alien Tech Used ----------------- None Achievements -------------- None Challenges ------------ None Game ------ Seed TerrainSignalArray Manual? 0 Play Time 03:03:09 Cumulative 263.9 hours Start 2024.10.16 @ 20:01:45 End 2024.10.18 @ 03:57:24 Sessions 5 Manual Loads 0 Difficulty Rogue Special Mode None Game No. 118 Rogue 118 Adventurer 0 Explorer 0 Win Type - Total 10 Types 6/0/3/1/0/0/0/0/0 Lore% 73 Gallery% 73 Achievement% 64 Wizard Run 0 Options --------- Layout 0 ASCII 0 Keyboard 0 Movement Numpad Keybinds 0 Fullscreen 2 Font 18/SmallcapsGlow Map View 76x50 Zoom Use 0% Tactical HUD 1 Map Filters NONE Filters NONE Steam 1 RUN: 8a56d91a-9334-4a67-a536-ecd477122810